fUST/lending_fUST_20250608
["ID","MTS","AMOUNT","RATE_DAILY","PERIOD"]
[364932844,1749315048627,-151.0,0.00022187,7]
[364932845,1749315048636,-385.98,0.000222,7]
[364932846,1749315048646,-205.14431331,0.00022233,6]
[364932847,1749315048656,-220.07538702,0.00022271,2]
[364932848,1749315048666,-321.84,0.00022355,2]
[364932849,1749315048675,-440.0,0.00022355,2]
[364932850,1749315048685,-4642.71,0.00022355,2]
[364932851,1749315048694,-450.0,0.00022358,7]
[364932852,1749315048704,-450.0,0.00022358,7]
[364932853,1749315048714,-151.0,0.00022358,7]
[364932854,1749315048724,-151.0,0.00022358,7]
[364932855,1749315048734,-205.14431331,0.00022381,7]
[364932856,1749315048744,-151.0,0.00022458,7]
[364932857,1749315048754,-213.779778,0.00022458,7]
[364932858,1749315048763,-213.779778,0.00022458,7]
[364932859,1749315048774,-151.0,0.00022459,7]
[364932860,1749315048784,-151.0,0.00022459,7]
[364932861,1749315048793,-2816.342367,0.00022459,2]
[364932862,1749315048804,-2816.342367,0.00022459,2]
[364932863,1749315048814,-151.0,0.00022459,7]
[364932864,1749315048824,-205.14431331,0.0002253,7]
[364932865,1749315048834,-151.0,0.00022558,7]
[364932866,1749315048843,-171.154142,0.00022558,7]
[364932867,1749315048854,-171.154142,0.00022558,7]
[364932868,1749315048864,-151.0,0.00022558,7]
[364932869,1749315048874,-440.0,0.00022629,2]
[364932870,1749315048884,-4642.71,0.00022629,2]
[364932871,1749315048894,-205.14431331,0.00022678,7]
[364932872,1749315048904,-151.0,0.00022732,7]
[364932873,1749315048915,-151.0,0.00022732,7]
[364932874,1749315048925,-217.386003,0.00022732,7]
[364932875,1749315048935,-217.386003,0.00022732,7]
[364932876,1749315048945,-205.14431331,0.00022826,8]
[364932877,1749315048956,-290.036668,0.00022831,7]
[364932878,1749315048966,-151.0,0.00022832,7]
[364932879,1749315048976,-213.779778,0.00022832,7]
[364932880,1749315048986,-213.779778,0.00022832,7]
[364932881,1749315048997,-440.0,0.00022903,2]
[364932882,1749315049006,-4642.71,0.00022903,2]
[364932883,1749315049016,-164.53075971,0.00022952,2]
[364932884,1749315049025,-205.14431331,0.00022974,8]
[364932885,1749315049036,-151.0,0.00022986,7]
[364932886,1749315049047,-261.913274,0.00022986,7]
[364932887,1749315049057,-151.0,0.00022986,7]
[364932888,1749315049067,-151.0,0.00022986,7]
[364932889,1749315049077,-151.0,0.00022986,7]
[364932890,1749315049087,-215.0738,0.00022987,2]
[364932891,1749315049097,-151.0,0.00022995,7]
[364932892,1749315049107,-171.154142,0.00022995,7]
[364932893,1749315049117,-171.154142,0.00022995,7]
[364932894,1749315049128,-151.0,0.00022995,7]
[364932895,1749315049138,-2816.342367,0.00022995,2]
[364932896,1749315049148,-2816.342367,0.00022995,2]
[364932897,1749315049158,-151.0,0.00022995,7]
[364932898,1749315049168,-219.931778,0.00022995,7]
[364932899,1749315049178,-219.931778,0.00022995,7]
[364932900,1749315049188,-191.108186,0.00022995,7]
[364932901,1749315049198,-169.0407,0.00022995,7]
[364932902,1749315049207,-169.0407,0.00022995,7]
[364932903,1749315049217,-151.0,0.00022995,7]
[364932904,1749315049227,-447.162159,0.00022995,7]
[364932905,1749315049237,-447.162159,0.00022995,7]
[364932906,1749315049247,-151.0,0.00022995,7]
[364932907,1749315049256,-151.0,0.00022995,7]
[364932908,1749315049266,-151.000003,0.00022995,7]
[364932909,1749315049276,-13910.0,0.00023,2]
[364932910,1749315049287,-151.0,0.00023,7]
[364932911,1749315049297,-151.0,0.00023,7]
[364932912,1749315049307,-217.386003,0.00023,7]
[364932913,1749315049317,-217.386003,0.00023,7]
[364932914,1749315049327,-151.0,0.00023,7]
[364932915,1749315049336,-450.0,0.00023,7]
[364932916,1749315049345,-450.0,0.00023,7]
[364932917,1749315049355,-151.0,0.00023,7]
[364932918,1749315049366,-151.0,0.00023,7]
[364932919,1749315049375,-151.0,0.00023,7]
[364932920,1749315049385,-834.52263295,0.00023,3]
[364932921,1749315049394,-500.0,0.00023047,2]
[364932922,1749315049403,-2223.0,0.00023092,2]
[364932923,1749315049414,-709.0,0.00023092,2]
[364932924,1749315049427,-205.14431331,0.00023122,8]
[364932925,1749315049437,-151.0,0.00023177,7]
[364932926,1749315049446,-440.0,0.00023177,2]
[364932927,1749315049456,-4642.71,0.00023177,2]
[364932928,1749315049466,-165.627146,0.00023182,2]
[364932929,1749315049476,-151.0,0.00023202,7]
[364932930,1749315049486,-219.931778,0.00023202,7]
[364932931,1749315049496,-219.931778,0.00023202,7]
[364932932,1749315049506,-447.162159,0.00023202,7]
[364932933,1749315049516,-447.162159,0.00023202,7]
[364932934,1749315049526,-154.280183,0.0002327,7]
[364932935,1749315049536,-171.154142,0.0002327,7]
[364932936,1749315049545,-171.154142,0.0002327,7]
[364932937,1749315049555,-151.0,0.0002327,7]
[364932938,1749315049564,-205.14431331,0.0002327,8]
[364932939,1749315049575,-151.0,0.0002328,7]
[364932940,1749315049585,-1016.11,0.000233,2]
[364932941,1749315049594,-151.0,0.000233,7]
[364932942,1749315049604,-151.0,0.000233,7]
[364932943,1749315049613,-2816.342367,0.000233,2]
[364932944,1749315049623,-2816.342367,0.000233,2]
[364932945,1749315049633,-152.588104,0.000233,7]
[364932946,1749315049643,-151.0,0.000233,7]
[364932947,1749315049653,-151.0,0.000233,7]
[364932948,1749315049663,-169.0407,0.000233,7]
[364932949,1749315049672,-169.0407,0.000233,7]
[364932950,1749315049681,-151.0,0.000233,7]
[364932951,1749315049691,-151.0,0.000233,7]
[364932952,1749315049701,-675.184714,0.00023323,3]
[364932953,1749315049711,-151.0,0.00023323,7]
[364932954,1749315049721,-213.779778,0.00023323,7]
[364932955,1749315049730,-213.779778,0.00023323,7]
[364932956,1749315049741,-500.0,0.00023393,2]
[364932957,1749315049752,-385.98,0.000234,7]
[364932958,1749315049761,-205.14431331,0.00023419,9]
[364932959,1749315049771,-440.0,0.00023451,2]
[364932960,1749315049780,-4642.71,0.00023451,2]
[364932961,1749315049790,-3495.45,0.00023457,2]
[364932962,1749315049802,-151.0,0.00023474,7]
[364932963,1749315049812,-252.50334,0.00023474,7]
[364932964,1749315049822,-151.0,0.00023474,7]
[364932965,1749315049832,-604.878631,0.00023474,7]
[364932966,1749315049841,-604.878631,0.00023474,7]
[364932967,1749315049851,-7060.14116325,0.000235,30]
[364932968,1749315049860,-151.0,0.000235,7]
[364932969,1749315049870,-217.386003,0.000235,7]
[364932970,1749315049879,-217.386003,0.000235,7]
[364932971,1749315049889,-151.0,0.000235,7]
[364932972,1749315049899,-1077.22,0.000235,7]
[364932973,1749315049909,-450.0,0.000235,7]
[364932974,1749315049930,-450.0,0.000235,7]
[364932975,1749315049944,-151.0,0.000235,7]
[364932976,1749315049953,-151.0,0.000235,7]
[364932977,1749315049962,-151.0,0.000235,7]
[364932978,1749315049972,-151.0,0.00023516,7]
[364932979,1749315049982,-205.14431331,0.00023567,9]
[364932980,1749315049991,-153.841364,0.00023616,30]
[364932981,1749315050001,-151.0,0.00023633,7]
[364932982,1749315050010,-219.931778,0.00023633,7]
[364932983,1749315050020,-219.931778,0.00023633,7]
[364932984,1749315050030,-151.0,0.00023633,7]
[364932985,1749315050039,-2200.0,0.00023633,2]
[364932986,1749315050050,-171.154142,0.00023654,7]
[364932987,1749315050059,-171.154142,0.00023654,7]
[364932988,1749315050069,-151.0,0.00023654,7]
[364932989,1749315050079,-447.162159,0.00023679,7]
[364932990,1749315050088,-447.162159,0.00023679,7]
[364932991,1749315050098,-11805.43722932,0.000237,2]
[364932992,1749315050108,-151.0,0.000237,7]
[364932993,1749315050117,-151.0,0.000237,7]
[364932994,1749315050127,-169.0407,0.000237,7]
[364932995,1749315050136,-169.0407,0.000237,7]
[364932996,1749315050146,-151.0,0.000237,7]
[364932997,1749315050155,-151.0,0.000237,7]
[364932998,1749315050165,-205.14431331,0.00023715,9]
[364932999,1749315050175,-4898.89,0.0002372,30]
[364933000,1749315050184,-440.0,0.00023725,2]
[364933001,1749315050193,-4642.71,0.00023725,2]
[364933002,1749315050203,-151.0,0.0002373,7]
[364933003,1749315050212,-219.931778,0.0002373,7]
[364933004,1749315050222,-219.931778,0.0002373,7]
[364933005,1749315050231,-315.08178181,0.0002373,30]
[364933006,1749315050242,-447.162159,0.0002373,7]
[364933007,1749315050252,-447.162159,0.0002373,7]
[364933008,1749315050262,-11851.94353573,0.0002373,30]
[364933009,1749315050271,-151.81688573,0.00023773,2]
[364933010,1749315050281,-500.0,0.00023773,2]
[364933011,1749315050290,-600.0,0.00023773,2]
[364933012,1749315050300,-2816.342367,0.00023773,2]
[364933013,1749315050310,-2816.342367,0.00023773,2]
[364933014,1749315050319,-429.281443,0.00023773,7]
[364933015,1749315050328,-151.0,0.00023773,7]
[364933016,1749315050338,-151.0,0.00023773,7]
[364933017,1749315050347,-151.0,0.00023773,7]
[364933018,1749315050357,-604.878631,0.00023773,7]
[364933019,1749315050367,-604.878631,0.00023773,7]
[364933020,1749315050379,-151.0,0.00023773,7]
[364933021,1749315050389,-151.0,0.00023799,7]
[364933022,1749315050400,-768.587656,0.00023799,7]
[364933023,1749315050409,-151.0,0.00023799,7]
[364933024,1749315050422,-151.0,0.00023799,7]
[364933025,1749315050432,-151.0,0.00023799,7]
[364933026,1749315050442,-151.0,0.00023799,7]
[364933027,1749315050451,-151.0,0.00023799,7]
[364933028,1749315050461,-169.0407,0.00023799,7]
[364933029,1749315050471,-169.0407,0.00023799,7]
[364933030,1749315050480,-151.0,0.00023799,7]
[364933031,1749315050489,-151.0,0.00023799,7]
[364933032,1749315050499,-10492.50763941,0.00023799,2]
[364933033,1749315050509,-43049.42561588,0.000238,2]
[364933034,1749315050519,-102388.7992732,0.000238,3]
[364933035,1749315050529,-1752.13181413,0.000238,7]
[364933036,1749315057701,1200.0,0.000254,120]
[364933039,1749315073397,766.71,0.0001855,2]
[364933041,1749315157110,756.95,0.00018512,2]
[364933042,1749315238773,747.32,0.00018438,2]
[364933044,1749315320770,737.8,0.00018443,2]
[364933045,1749315403104,709.30365676,0.00018437,2]
[364933046,1749315403133,19.10634324,0.00018437,2]
[364933048,1749315443740,165.140634,0.00013699,2]
[364933049,1749315484135,725.1,0.00018426,2]
[364933050,1749315564718,721.6,0.00018435,2]
[364933052,1749315646995,714.32,0.00018434,2]
[364933055,1749316016461,233.03303125,0.00018707,2]
[364933056,1749316036624,-256.62208794,0.0001909,2]
[364933057,1749316036647,-300.0,0.00019691,2]
[364933058,1749316036671,-12345.88251204,0.00019692,2]
[364933059,1749316042724,150.0,0.000189,2]
[364933107,1749316232512,-316.0,0.00019675,2]
[364933108,1749316232523,-316.0,0.00019675,2]
[364933109,1749316232534,-300.0,0.00019691,2]
[364933110,1749316232543,-300.0,0.00019691,2]
[364933111,1749316232554,-514.89103626,0.00019692,2]
[364933112,1749316232619,-903.951738,0.00019692,2]
[364933113,1749316232671,-1038.8,0.00019692,2]
[364933114,1749316232684,-10096.4747137,0.00019692,2]
[364933115,1749316232694,-439.54272735,0.00019874,2]
[364933116,1749316232703,-500.0,0.00019874,2]
[364933117,1749316232715,-500.0,0.00019874,2]
[364933118,1749316232725,-500.0,0.00019874,2]
[364933119,1749316232736,-500.0,0.00019874,2]
[364933121,1749316232746,-500.0,0.00019874,2]
[364933123,1749316232756,-500.0,0.00019874,2]
[364933125,1749316232766,-183.88525515,0.00019874,2]
[364933127,1749316232775,-500.0,0.00019874,2]
[364933129,1749316232786,-500.0,0.00019874,2]
[364933131,1749316232795,-500.0,0.00019874,2]
[364933133,1749316232805,-500.0,0.00019874,2]
[364933135,1749316232815,-500.0,0.00019874,2]
[364933137,1749316232825,-500.0,0.00019874,2]
[364933139,1749316232835,-500.0,0.00019874,2]
[364933141,1749316232844,-500.0,0.00019874,2]
[364933143,1749316232854,-407.97883892,0.00019874,2]
[364933145,1749316232864,-500.0,0.00019874,2]
[364933147,1749316232873,-500.0,0.00019874,2]
[364933151,1749316233019,-320.0,0.00019874,2]
[364933152,1749316233030,-500.0,0.00019874,2]
[364933153,1749316233041,-500.0,0.00019874,2]
[364933154,1749316233051,-500.0,0.00019874,2]
[364933155,1749316233061,-500.0,0.00019874,2]
[364933156,1749316233074,-500.0,0.00019874,2]
[364933157,1749316233085,-500.0,0.00019874,2]
[364933158,1749316233095,-500.0,0.00019874,2]
[364933159,1749316233105,-500.0,0.00019874,2]
[364933160,1749316233117,-500.0,0.00019874,2]
[364933161,1749316233127,-211.99764877,0.00019874,2]
[364933162,1749316233137,-500.0,0.00019874,2]
[364933163,1749316233149,-500.0,0.00019874,2]
[364933164,1749316233160,-500.0,0.00019874,2]
[364933165,1749316233170,-500.0,0.00019874,2]
[364933166,1749316233181,-500.0,0.00019874,2]
[364933167,1749316233191,-500.0,0.00019874,2]
[364933168,1749316233201,-500.0,0.00019874,2]
[364933169,1749316233211,-500.0,0.00019874,2]
[364933170,1749316233221,-500.0,0.00019874,2]
[364933171,1749316233232,-500.0,0.00019874,2]
[364933172,1749316233242,-500.0,0.00019874,2]
[364933173,1749316233253,-500.0,0.00019874,2]
[364933174,1749316233263,-500.0,0.00019874,2]
[364933175,1749316233273,-500.0,0.00019874,2]
[364933176,1749316233283,-500.0,0.00019874,2]
[364933177,1749316233292,-500.0,0.00019874,2]
[364933178,1749316233303,-500.0,0.00019874,2]
[364933179,1749316233312,-500.0,0.00019874,2]
[364933180,1749316233323,-500.0,0.00019874,2]
[364933181,1749316233333,-500.0,0.00019874,2]
[364933182,1749316233342,-500.0,0.00019874,2]
[364933183,1749316233353,-500.0,0.00019874,2]
[364933184,1749316233362,-160.97776458,0.00019874,2]
[364933185,1749316233373,-500.0,0.00019874,2]
[364933186,1749316233383,-500.0,0.00019874,2]
[364933187,1749316233393,-500.0,0.00019874,2]
[364933188,1749316233405,-500.0,0.00019874,2]
[364933189,1749316233415,-500.0,0.00019874,2]
[364933190,1749316233426,-500.0,0.00019874,2]
[364933191,1749316233436,-500.0,0.00019874,2]
[364933192,1749316233447,-500.0,0.00019874,2]
[364933193,1749316233457,-500.0,0.00019874,2]
[364933194,1749316233467,-500.0,0.00019874,2]
[364933195,1749316233478,-500.0,0.00019874,2]
[364933196,1749316233488,-500.0,0.00019874,2]
[364933197,1749316233499,-500.0,0.00019874,2]
[364933198,1749316233510,-176.82355567,0.00019874,2]
[364933199,1749316233520,-500.0,0.00019874,2]
[364933200,1749316233530,-500.0,0.00019874,2]
[364933201,1749316233541,-500.0,0.00019874,2]
[364933202,1749316233551,-500.0,0.00019874,2]
[364933203,1749316233561,-500.0,0.00019874,2]
[364933204,1749316233571,-500.0,0.00019874,2]
[364933205,1749316233581,-181.8290686,0.00019875,2]
[364933206,1749316233591,-177.831983,0.00019888,2]
[364933207,1749316233601,-201.00758388,0.00020013,2]
[364933208,1749316233611,-813.87,0.00020035,2]
[364933209,1749316233621,-160.0,0.00020094,2]
[364933210,1749316233632,-2821.9899538,0.00020095,2]
[364933211,1749316233643,-824.7612103,0.00020118,2]
[364933212,1749316233654,-300.0,0.00020162,2]
[364933213,1749316233665,-440.0,0.00020162,2]
[364933214,1749316233674,-440.0,0.00020163,2]
[364933215,1749316233684,-173.288881,0.0002042,2]
[364933216,1749316233694,-440.0,0.00020436,2]
[364933217,1749316233703,-440.0,0.00020437,2]
[364933218,1749316233713,-834.52263295,0.00020644,2]
[364933219,1749316233722,-440.0,0.0002071,2]
[364933220,1749316233733,-440.0,0.00020711,2]
[364933221,1749316233742,-500.0,0.00020855,2]
[364933222,1749316233752,-209.31467643,0.000209,4]
[364933223,1749316233762,-440.0,0.00020985,2]
[364933224,1749316233772,-1110.88473613,0.00021048,2]
[364933225,1749316233783,-440.0,0.00021188,2]
[364933226,1749316233793,-440.0,0.00021188,2]
[364933227,1749316233803,-440.0,0.00021188,2]
[364933228,1749316233813,-205.8214217,0.00021188,2]
[364933247,1749316239028,-234.1785783,0.00021188,2]
[364933248,1749316239038,-1934.46,0.00021188,2]
[364933249,1749316239048,-440.0,0.00021188,2]
[364933250,1749316239059,-544.75,0.00021188,2]
[364933251,1749316239069,-440.0,0.00021188,2]
[364933252,1749316239082,-440.0,0.00021188,2]
[364933253,1749316239094,-440.0,0.00021188,2]
[364933254,1749316239104,-372.13082255,0.00021188,2]
[364933255,1749316239115,-440.0,0.00021188,2]
[364933256,1749316239126,-430.0,0.00021188,2]
[364933257,1749316239137,-440.0,0.00021188,2]
[364933258,1749316239146,-440.0,0.00021188,2]
[364933259,1749316239159,-440.0,0.00021188,2]
[364933260,1749316239169,-440.0,0.00021188,2]
[364933261,1749316239180,-440.0,0.00021188,2]
[364933262,1749316239190,-440.0,0.00021188,2]
[364933263,1749316239200,-440.0,0.00021188,2]
[364933264,1749316239211,-440.0,0.00021188,2]
[364933265,1749316239221,-185.554771,0.00021189,2]
[364933266,1749316239231,-185.554771,0.00021189,2]
[364933267,1749316239240,-296.781168,0.00021189,2]
[364933268,1749316239250,-151.0,0.00021189,2]
[364933269,1749316239260,-730.158274,0.00021189,2]
[364933270,1749316239270,-730.158274,0.00021189,2]
[364933271,1749316239280,-151.0,0.00021189,2]
[364933272,1749316239290,-151.000001,0.00021189,2]
[364933273,1749316239300,-268.47544353,0.00021257,2]
[364933274,1749316239310,-440.0,0.00021257,2]
[364933275,1749316239322,-217.28749386,0.00021257,2]
[364933276,1749316239333,-440.0,0.00021257,2]
[364933277,1749316239343,-440.0,0.00021257,2]
[364933278,1749316239354,-440.0,0.00021257,2]
[364933279,1749316239364,-440.0,0.00021257,2]
[364933280,1749316239375,-440.0,0.00021257,2]
[364933281,1749316239385,-440.0,0.00021257,2]
[364933282,1749316239395,-440.0,0.00021257,2]
[364933283,1749316239405,-440.0,0.00021257,2]
[364933284,1749316239414,-566.79153084,0.00021257,2]
[364933285,1749316239424,-440.0,0.00021257,2]
[364933286,1749316239433,-440.0,0.00021257,2]
[364933287,1749316239443,-364.69325037,0.00021257,2]
[364933288,1749316239453,-440.0,0.00021257,2]
[364933289,1749316239463,-440.0,0.00021257,2]
[364933290,1749316239472,-440.0,0.00021257,2]
[364933291,1749316239482,-440.0,0.00021257,2]
[364933292,1749316239491,-440.0,0.00021257,2]
[364933293,1749316239502,-440.0,0.00021257,2]
[364933294,1749316239513,-521.34,0.00021257,2]
[364933295,1749316239522,-440.0,0.00021257,2]
[364933296,1749316239532,-440.0,0.00021258,2]
[364933297,1749316239542,-440.0,0.00021258,2]
[364933298,1749316239552,-440.0,0.00021258,2]
[364933299,1749316239563,-440.0,0.00021258,2]
[364933300,1749316239572,-430.0,0.00021258,2]
[364933301,1749316239583,-440.0,0.00021258,2]
[364933302,1749316239594,-440.0,0.00021258,2]
[364933303,1749316239605,-440.0,0.00021258,2]
[364933304,1749316239615,-380.0,0.00021258,2]
[364933305,1749316239626,-440.0,0.00021258,2]
[364933306,1749316239636,-507.00851311,0.00021258,2]
[364933307,1749316239645,-430.0,0.00021258,2]
[364933308,1749316239655,-440.0,0.00021258,2]
[364933309,1749316239665,-430.0,0.00021258,2]
[364933310,1749316239674,-431.79371365,0.00021258,2]
[364933311,1749316239684,-440.0,0.00021258,2]
[364933312,1749316239694,-430.0,0.00021258,2]
[364933313,1749316239703,-430.0,0.00021258,2]
[364933314,1749316239713,-400.0,0.00021258,2]
[364933315,1749316239723,-430.0,0.00021258,2]
[364933316,1749316239732,-440.0,0.00021258,2]
[364933317,1749316239741,-337.720538,0.00021258,2]
[364933318,1749316239751,-349.59797648,0.00021258,2]
[364933319,1749316239760,-380.0,0.00021258,2]
[364933320,1749316239769,-442.73193462,0.00021258,2]
[364933321,1749316239778,-440.0,0.00021258,2]
[364933322,1749316239789,-440.0,0.00021258,2]
[364933323,1749316239798,-440.0,0.00021258,2]
[364933324,1749316239807,-240.653346,0.00021259,2]
[364933325,1749316239816,-240.653346,0.00021259,2]
[364933326,1749316239825,-151.0,0.00021259,2]
[364933327,1749316239835,-440.0,0.00021259,2]
[364933328,1749316239845,-209.31467638,0.000214,5]
[364933329,1749316239855,-156.1300075,0.00021431,2]
[364933330,1749316239864,-440.0,0.00021462,2]
[364933331,1749316239874,-1934.46,0.00021462,2]
[364933332,1749316239884,-440.0,0.00021462,2]
[364933333,1749316239894,-440.0,0.00021462,2]
[364933334,1749316239904,-440.0,0.00021462,2]
[364933335,1749316239913,-440.0,0.00021462,2]
[364933336,1749316239922,-440.0,0.00021462,2]
[364933337,1749316239932,-440.0,0.00021462,2]
[364933339,1749316239942,-440.0,0.00021462,2]
[364933340,1749316239951,-440.0,0.00021462,2]
[364933342,1749316239961,-440.0,0.00021462,2]
[364933343,1749316239972,-440.0,0.00021462,2]
[364933344,1749316239981,-440.0,0.00021462,2]
[364933345,1749316239991,-440.0,0.00021462,2]
[364933346,1749316240001,-440.0,0.00021462,2]
[364933347,1749316240011,-16000.0,0.00021517,2]
[364933348,1749316240022,-6322.98161263,0.00021517,2]
[364933349,1749316240032,-346.24338429,0.0002153,2]
[364933350,1749316240041,-440.0,0.0002153,2]
[364933351,1749316240051,-440.0,0.0002153,2]
[364933352,1749316240074,-250.79593216,0.0002153,2]
[364933353,1749316240088,-440.0,0.0002153,2]
[364933354,1749316240099,-430.0,0.0002153,2]
[364933355,1749316240111,-440.0,0.0002153,2]
[364933356,1749316240123,-440.0,0.0002153,2]
[364933357,1749316240136,-440.0,0.0002153,2]
[364933358,1749316240146,-440.0,0.0002153,2]
[364933360,1749316240156,-445.46472631,0.0002153,2]
[364933361,1749316240168,-440.0,0.0002153,2]
[364933362,1749316240178,-440.0,0.0002153,2]
[364933363,1749316240188,-527.74761476,0.0002153,2]
[364933364,1749316240199,-440.0,0.0002153,2]
[364933365,1749316240209,-276.97095258,0.0002153,2]
[364933367,1749316240219,-529.0,0.0002153,2]
[364933368,1749316240231,-440.0,0.0002153,2]
[364933369,1749316240240,-440.0,0.0002153,2]
[364933370,1749316240250,-241.0,0.0002153,2]
[364933371,1749316240259,-380.0,0.0002153,2]
[364933372,1749316240269,-440.0,0.0002153,2]
[364933373,1749316240279,-440.0,0.0002153,2]
[364933374,1749316240289,-438.72354344,0.0002153,2]
[364933375,1749316240300,-440.0,0.0002153,2]
[364933376,1749316240309,-440.0,0.00021531,2]
[364933378,1749316240319,-440.0,0.00021531,2]
[364933379,1749316240329,-440.0,0.00021531,2]
[364933380,1749316240339,-440.0,0.00021531,2]
[364933381,1749316240348,-440.0,0.00021531,2]
[364933382,1749316240358,-420.0,0.00021531,2]
[364933383,1749316240368,-440.0,0.00021531,2]
[364933384,1749316240378,-440.0,0.00021531,2]
[364933385,1749316240389,-440.0,0.00021531,2]
[364933386,1749316240399,-525.76247446,0.00021532,2]
[364933387,1749316240408,-420.0,0.00021532,2]
[364933388,1749316240418,-306.97446327,0.00021532,2]
[364933389,1749316240427,-440.0,0.00021533,2]
[364933390,1749316240437,-440.0,0.00021736,2]
[364933391,1749316240447,-1934.46,0.00021736,2]
[364933392,1749316240457,-380.0,0.00021736,2]
[364933393,1749316240466,-440.0,0.00021736,2]
[364933394,1749316240476,-440.0,0.00021736,2]
[364933395,1749316240486,-535.096736,0.00021736,2]
[364933396,1749316240495,-440.0,0.00021736,2]
[364933397,1749316240505,-370.0,0.00021736,2]
[364933398,1749316240515,-440.0,0.00021736,2]
[364933399,1749316240526,-440.0,0.00021736,2]
[364933400,1749316240535,-440.0,0.00021736,2]
[364933401,1749316240545,-440.0,0.00021804,2]
[364933402,1749316240554,-492.26,0.00021804,2]
[364933403,1749316240564,-440.0,0.00021804,2]
[364933405,1749316240574,-380.0,0.00021804,2]
[364933406,1749316240583,-150.94,0.00021804,2]
[364933407,1749316240593,-442.49,0.00021804,2]
[364933409,1749316240603,-440.0,0.00021804,2]
[364933410,1749316240612,-440.0,0.00021804,2]
[364933411,1749316240621,-380.0,0.00021804,2]
[364933413,1749316240631,-440.0,0.00021805,2]
[364933414,1749316240641,-440.0,0.00021805,2]
[364933415,1749316240650,-440.0,0.00021805,2]
[364933416,1749316240660,-440.0,0.00021805,2]
[364933417,1749316240670,-299.08,0.00021805,2]
[364933418,1749316240685,-440.0,0.00021805,2]
[364933419,1749316240695,-440.0,0.00021807,2]
[364933420,1749316240704,-175.886,0.00021807,2]
[364933421,1749316240714,-1627.74,0.00021856,2]
[364933422,1749316240724,-5015.10292,0.000219,2]
[364933423,1749316240734,-209.31467638,0.000219,6]
[364933424,1749316240744,-420.0,0.00021951,2]
[364933425,1749316240754,-161.0,0.00022,2]
[364933426,1749316240764,-440.0,0.0002201,2]
[364933427,1749316240773,-1934.46,0.0002201,2]
[364933428,1749316240783,-440.0,0.0002201,2]
[364933429,1749316240793,-440.0,0.0002201,2]
[364933430,1749316240803,-440.0,0.0002201,2]
[364933431,1749316240813,-440.0,0.00022078,2]
[364933432,1749316240823,-440.0,0.00022079,2]
[364933433,1749316240833,-440.0,0.00022079,2]
[364933434,1749316240842,-440.0,0.00022079,2]
[364933435,1749316240852,-185.554771,0.00022081,7]
[364933436,1749316240861,-185.554771,0.00022081,7]
[364933437,1749316240871,-440.0,0.00022081,2]
[364933438,1749316240881,-730.158274,0.00022082,7]
[364933439,1749316240891,-730.158274,0.00022082,7]
[364933440,1749316240902,-151.0,0.00022082,7]
[364933441,1749316240913,-309.937858,0.00022098,2]